bitfinex/quotes_ETHUSD_20250630
["timestamp","ask_amount","ask_price","bid_price","bid_amount"]
[1751316460583,0.02,2510.8,2510.7,5.04115188]
[1751316461504,0.02,2510.8,2510.7,1.05819892]
[1751316462010,0.02,2510.8,2510.7,0.1984]
[1751316463812,0.02,2510.8,2510.7,4.18135296]
[1751316465103,0.02,2510.8,2510.7,21.89909876]
[1751316466625,0.02,2510.8,2510.7,28.41509876]
[1751316470514,0.02,2511.6,2511.5,4.58168425]
[1751316470691,0.02,2511.7,2511.6,4.58152572]
[1751316471025,0.02,2511.7,2511.5,30.82299848]
[1751316471026,0.02,2512.0,2511.9,14.5810502]
[1751316471239,0.02,2512.0,2511.9,28.213796]
[1751316471533,0.02,2512.0,2511.9,28.60721183]
[1751316471690,0.02,2512.0,2511.9,33.67603477]
[1751316472329,0.02,2512.0,2511.9,33.87492114]
[1751316473212,0.02,2512.0,2511.9,25.35492114]
[1751316473416,0.02,2512.0,2511.9,14.05723877]
[1751316473635,0.02,2512.0,2511.9,20.52923877]
[1751316473943,0.02,2512.0,2511.9,19.98323877]
[1751316474145,0.02,2512.0,2511.9,16.7244]
[1751316474146,4.00089171,2512.0,2511.9,16.7244]
[1751316474327,0.02,2512.0,2511.9,16.7244]
[1751316475128,0.02,2512.0,2511.9,21.2554502]
[1751316475734,0.02,2512.0,2511.9,21.3054502]
[1751316476943,0.02,2512.0,2511.9,21.2554502]
[1751316477246,0.02,2512.0,2511.9,10.1984]
[1751316477551,0.02,2512.0,2511.9,16.7244]
[1751316478550,0.02,2512.0,2511.9,10.1984]
[1751316478746,0.02,2512.0,2511.9,16.7234]
[1751316479130,0.02,2512.0,2511.9,6.7234]
[1751316479851,0.02,2512.0,2511.9,0.1984]
[1751316480157,0.02,2512.0,2511.9,6.7234]
[1751316480656,4.00089171,2512.0,2511.9,0.1984]
[1751316480854,0.89572587,2512.0,2511.8,6.523]
[1751316481020,4.00095788,2512.0,2511.8,6.7214]
[1751316481949,4.00095788,2512.0,2511.8,0.1984]
[1751316482657,3.9810502,2511.9,2511.8,0.1984]
[1751316482845,4.00095299,2512.0,2511.8,0.1984]
[1751316483165,3.9810502,2511.9,2511.8,0.1984]
[1751316483746,4.00090341,2512.0,2511.8,0.1984]
[1751316483950,4.7817502,2511.9,2511.8,0.1984]
[1751316484264,4.7817502,2511.9,2511.5,8.523]
[1751316484464,3.98146865,2511.7,2511.5,2.1994]
[1751316484629,3.98127226,2511.8,2511.5,8.7214]
[1751316484832,3.9814914,2511.7,2511.5,8.7214]
[1751316485065,3.98168626,2511.5,2511.3,6.522]
[1751316485270,4.74658626,2511.5,2511.4,0.1984]
[1751316486161,4.74658425,2511.5,2511.4,0.1984]
[1751316486666,0.7649,2511.5,2511.4,0.1984]
[1751316486852,3.98204997,2511.3,2510.8,0.05]
[1751316487051,0.7649,2511.5,2510.8,0.05]
[1751316487052,0.7649,2511.5,2511.0,7.1177458]
[1751316487263,0.7649,2511.5,2511.2,0.1984]
[1751316487465,3.98184764,2511.4,2511.2,0.1984]
[1751316487670,4.74666401,2511.5,2511.2,0.1984]
[1751316487860,3.98184454,2511.4,2511.2,0.1984]
[1751316488059,4.74662863,2511.5,2511.2,0.1984]
[1751316488575,0.7649,2511.5,2511.2,0.1984]
[1751316488982,4.74659392,2511.5,2511.2,0.1984]
[1751316490175,3.9818454,2511.4,2511.2,0.1984]
[1751316490668,4.74666877,2511.5,2511.2,0.1984]
[1751316490862,0.7649,2511.5,2511.2,4.18046947]
[1751316491243,0.7649,2511.5,2511.2,0.1984]
[1751316491670,0.7649,2511.5,2511.2,4.18053422]
[1751316492070,0.7649,2511.5,2511.2,0.1984]
[1751316493384,4.7466479,2511.5,2511.2,0.1984]
[1751316494283,0.7649,2511.5,2511.2,4.18047148]
[1751316495571,0.7649,2511.5,2511.3,3.98196084]
[1751316495775,0.7976,2511.7,2511.4,0.1984]
[1751316497199,4.17973144,2511.8,2511.4,0.1984]
[1751316498117,4.17973144,2511.8,2511.4,4.18023693]
[1751316498472,0.1984,2511.8,2511.5,3.98167182]
[1751316498676,0.1984,2511.8,2511.4,0.1984]
[1751316498920,4.1796285,2511.8,2511.4,4.18014664]
[1751316499210,3.98137687,2511.7,2511.4,0.1984]
[1751316499615,4.17969863,2511.8,2511.4,0.1984]
[1751316499816,4.17969863,2511.8,2511.4,4.18022739]
[1751316500516,0.1984,2511.8,2511.4,4.18022739]
[1751316500873,0.02,2512.0,2511.7,0.1984]
[1751316504601,0.02,2512.0,2511.8,3.98114021]
[1751316505416,0.02,2512.0,2511.7,0.1984]
[1751316505615,4.00097817,2512.0,2511.7,0.1984]
[1751316505827,0.02,2512.0,2511.7,4.17975973]
[1751316506238,0.02,2512.0,2511.8,3.98120487]
[1751316507306,0.02,2512.0,2511.8,4.80230105]
[1751316507502,0.02,2512.0,2511.9,3.9810502]
[1751316507732,0.02,2512.0,2511.9,0.1984]
[1751316509044,0.02,2512.0,2511.9,4.1794502]
[1751316510328,0.02,2512.0,2511.9,4.7294502]
[1751316510525,0.02,2512.0,2511.9,7.09570012]
[1751316514653,0.02,2512.0,2511.9,7.04570012]
[1751316519674,0.02,2512.0,2511.9,13.55770012]
[1751316520861,0.02,2512.0,2511.9,23.60770012]
[1751316522482,0.02,2512.0,2511.9,23.55770012]
[1751316523875,0.02,2512.0,2511.9,16.49570012]
[1751316524188,0.02,2512.0,2511.9,23.00770012]
[1751316525053,0.02,2512.0,2511.9,16.49570012]
[1751316525250,0.02,2512.0,2511.9,23.00770012]
[1751316525790,0.02,2512.0,2511.9,23.55770012]
[1751316527487,0.02,2512.0,2511.9,23.60770012]
[1751316528904,0.02,2512.0,2511.9,23.90413216]
[1751316529274,0.02,2512.0,2511.9,17.09570012]
[1751316529473,0.02,2512.0,2511.9,25.60670012]
[1751316532004,0.02,2512.0,2511.9,25.9780425]
[1751316533924,0.02,2512.0,2511.9,25.9280425]
[1751316534441,0.02,2512.0,2511.9,25.9270425]
[1751316534611,0.02,2512.0,2511.9,16.8670425]
[1751316534814,0.02,2512.0,2511.9,25.3770425]
[1751316535138,0.02,2512.0,2511.9,25.9270425]
[1751316536537,0.02,2512.0,2511.9,15.9270425]
[1751316536833,0.02,2512.0,2511.9,25.9270425]
[1751316540721,0.02,2512.0,2511.9,27.51339076]
[1751316541322,0.02,2512.0,2511.9,25.9770425]
[1751316542136,0.02,2512.0,2511.9,27.56353381]
[1751316543356,0.853,2512.0,2511.9,10.56974238]
[1751316543526,0.853,2512.0,2511.9,16.7084]
[1751316543930,0.853,2512.0,2511.9,20.6894502]
[1751316546366,0.02,2512.0,2511.9,20.6894502]
[1751316546730,0.02,2512.0,2511.9,21.2894502]
[1751316546929,0.02,2512.0,2511.9,24.88892731]
[1751316547438,0.02,2512.1,2512.0,14.53089171]
[1751316548766,0.02,2512.7,2512.6,4.52994109]
[1751316548964,0.02,2512.7,2512.5,10.0]
[1751316549265,0.799,2512.6,2512.4,6.51]
[1751316549631,0.799,2512.6,2512.5,3.9800995]
[1751316549968,0.799,2512.6,2512.5,4.1784995]
[1751316551291,0.02,2512.7,2512.5,0.1984]
[1751316551454,0.02,2512.7,2512.5,4.17837712]
[1751316551639,0.02,2512.7,2512.6,10.48894109]
[1751316553245,0.02,2512.7,2512.6,11.95567291]
[1751316553442,0.02,2512.7,2512.6,7.97573182]
[1751316553847,0.02,2512.7,2512.6,11.95567291]
[1751316555942,0.02,2512.7,2512.6,19.62341871]
[1751316557239,0.02,2512.7,2512.6,1.46673182]
[1751316557441,0.02,2512.7,2512.5,0.1984]
[1751316557653,0.7958,2512.6,2512.5,0.1984]
[1751316558091,4.77574109,2512.6,2512.5,0.1984]
[1751316558292,4.77574109,2512.6,2512.2,0.1984]
[1751316558487,4.77574109,2512.6,2512.2,6.7094]
[1751316558678,0.7958,2512.4,2512.2,6.7094]
[1751316559954,0.8058,2512.4,2512.2,6.7094]
[1751316560355,0.8058,2512.4,2512.2,10.68994341]
[1751316560964,0.8058,2512.4,2512.3,3.98041635]
[1751316561174,0.01,2512.4,2512.3,3.98041635]
[1751316561379,0.01,2512.4,2512.3,5.44745233]
[1751316561979,0.01,2512.4,2512.3,13.11519813]
[1751316562296,0.01,2512.4,2512.3,23.11519813]
[1751316563665,0.01,2512.4,2512.3,23.16519813]
[1751316564306,0.02,2512.7,2512.6,21.64768689]
[1751316564500,0.02,2512.7,2512.6,31.32188787]
[1751316568302,0.02,2512.7,2512.6,13.16420098]
[1751316568464,0.02,2512.7,2512.6,16.7074]
[1751316572390,4.8291827,2512.7,2512.6,0.1984]
[1751316572610,4.8291827,2512.7,2512.5,6.7064]
[1751316572923,3.97994109,2512.6,2512.5,6.7064]
[1751316573094,3.97994109,2512.6,2512.3,1.999]
[1751316573420,0.90088285,2512.7,2512.4,0.1984]
[1751316573611,3.9800995,2512.5,2512.4,6.7064]
[1751316574228,3.9800995,2512.5,2512.4,0.1984]
[1751316575095,4.8113995,2512.5,2512.4,0.1984]
[1751316575788,0.02,2512.7,2512.0,0.02]
[1751316575789,4.75323325,2512.1,2512.0,0.02]
[1751316576001,5.62661661,2512.1,2512.0,0.02]
[1751316576187,4.75323325,2512.1,2512.0,0.02]
[1751316579510,4.73953325,2512.1,2512.0,0.02]
[1751316587126,3.9810502,2511.9,2511.8,0.02]
[1751316587823,4.7823502,2511.9,2511.8,0.02]
[1751316589215,0.8006,2511.3,2511.1,0.02]
[1751316589451,3.98215992,2511.2,2511.1,0.02]
[1751316589619,5.2568208,2511.2,2511.1,0.02]
[1751316591355,3.9824771,2511.0,2510.9,0.02]
[1751316592776,3.98239567,2511.1,2510.9,0.02]
[1751316593279,2.28396088,2511.2,2510.9,0.02]
[1751316593491,3.98202783,2511.3,2510.9,0.02]
[1751316593658,3.98202783,2511.3,2510.9,0.2184]
[1751316594984,3.98219065,2511.2,2510.9,0.2184]
[1751316595278,3.98234374,2511.1,2510.9,0.2184]
[1751316596659,3.9824771,2511.0,2510.9,0.2184]
[1751316596964,4.77895918,2511.0,2510.9,0.2184]
[1751316597281,5.58105918,2511.0,2510.9,0.02]
[1751316602469,3.98279432,2510.8,2510.7,0.02]
[1751316605270,3.98273397,2510.9,2510.7,0.02]
[1751316605469,3.98272712,2510.9,2510.7,0.02]
[1751316606603,0.1984,2511.1,2510.7,0.02]
[1751316607503,4.18084828,2511.1,2510.7,0.02]
[1751316608238,3.98271672,2510.9,2510.7,0.02]
[1751316608530,3.98279432,2510.8,2510.7,0.02]
[1751316608894,4.80379432,2510.8,2510.7,0.02]
[1751316610099,3.98279432,2510.8,2510.7,0.02]
[1751316612135,3.98275236,2510.9,2510.7,0.02]
[1751316613031,3.98253873,2511.0,2510.7,0.02]
[1751316613940,3.98279432,2510.8,2510.7,0.02]
[1751316616219,3.98270535,2510.9,2510.7,0.02]
[1751316619839,4.002559,2511.0,2510.8,0.1984]
[1751316620146,0.02,2511.0,2510.8,0.1984]
[1751316620536,4.00248927,2511.0,2510.8,0.1984]
[1751316620940,3.9826357,2510.9,2510.8,0.1984]
[1751316621809,4.00256503,2511.0,2510.8,0.1984]
[1751316624476,4.52072624,2510.9,2510.8,0.1984]
[1751316624639,4.79179432,2510.8,2510.7,0.02]
[1751316624952,4.79179432,2510.8,2510.1,10.07]
[1751316624953,0.809,2510.8,2510.1,10.07]
[1751316625159,3.98337384,2510.5,2510.4,0.1984]
[1751316625730,3.98320325,2510.6,2510.4,0.1984]
[1751316625936,4.8805649,2510.6,2510.4,0.1984]
[1751316626368,3.98327026,2510.5,2510.4,0.1984]
[1751316626668,4.74517026,2510.5,2510.4,0.1984]
[1751316628239,3.98342893,2510.4,2510.1,0.2184]
[1751316628438,4.18182893,2510.4,2510.1,0.02]
[1751316628672,5.78976501,2510.4,2510.1,0.02]
[1751316628980,4.80764631,2510.2,2510.1,0.02]
[1751316631610,0.98243608,2510.4,2510.1,1e-08]
[1751316631772,0.824,2510.6,2509.8,7.1177458]
[1751316631972,4.80718722,2510.6,2510.1,0.05]
[1751316632172,3.98327812,2510.5,2510.1,0.05]
[1751316632593,5.93912089,2510.6,2510.1,0.05]
[1751316632810,12.45112089,2510.6,2510.1,0.05]
[1751316633824,12.451067,2510.6,2509.8,4.03427395]
[1751316634104,3.98344777,2510.4,2509.9,3.98410376]
[1751316634607,3.98360081,2510.3,2509.7,3.98443888]
[1751316634814,3.98360081,2510.3,2509.7,6.71267209]
[1751316635279,3.98360081,2510.3,2509.8,3.98437599]
[1751316635479,3.98350651,2510.4,2509.9,4.0342141]
[1751316635679,3.9834314,2510.4,2509.9,0.05]
[1751316636790,0.8071,2510.5,2509.9,0.05]
[1751316636984,10.49518251,2510.6,2510.0,3.98394716]
[1751316637185,10.49518251,2510.6,2510.1,3.98388455]
[1751316637584,6.512,2510.6,2510.1,3.98388455]
[1751316637786,2.03519238,2510.9,2510.1,0.05]
[1751316637977,6.01793446,2510.9,2510.3,3.98352078]
[1751316638301,3.98279432,2510.8,2510.2,4.53364012]
[1751316638474,6.01792581,2510.9,2510.3,3.9835783]
[1751316638675,6.01792581,2510.9,2510.5,0.1984]
[1751316640198,4.83563343,2510.9,2510.5,0.1984]
[1751316640805,4.83563343,2510.9,2510.5,0.2484]
[1751316641007,4.00265001,2510.9,2510.5,0.2484]
[1751316641199,0.02,2510.7,2510.5,0.2484]
[1751316642513,0.02,2510.7,2510.5,0.1984]
[1751316649521,0.02,2510.7,2510.6,4.5831116]
[1751316649823,0.02,2510.7,2510.6,16.54644453]
[1751316652021,0.02,2510.7,2510.6,18.54544453]
[1751316652630,0.02,2510.9,2510.8,4.58279432]
[1751316652815,0.02,2510.9,2510.8,14.78119432]
[1751316653553,0.02,2510.9,2510.8,15.15321512]
[1751316653730,0.02,2510.9,2510.8,18.04963626]
[1751316654734,0.02,2510.9,2510.8,24.55963626]
[1751316656858,0.02,2510.9,2510.8,17.49963626]
[1751316657065,0.02,2510.9,2510.8,10.5704208]
[1751316657265,0.02,2510.9,2510.8,0.5704208]
[1751316663082,0.02,2510.9,2510.8,5.10321512]
[1751316663369,0.02,2510.9,2510.8,15.15321512]
[1751316663860,0.02,2510.9,2510.8,22.26290556]
[1751316664087,0.02,2510.9,2510.8,25.53839139]
[1751316664226,0.02,2510.9,2510.8,10.5704208]
[1751316664426,0.02,2510.9,2510.8,7.0794208]
[1751316666227,0.02,2510.9,2510.8,6.7074]
[1751316667127,4.0026357,2510.9,2510.8,0.1984]
[1751316667327,0.8061,2510.8,2510.6,6.508]
[1751316667533,4.78889432,2510.8,2510.7,0.57032315]
[1751316667742,4.78889432,2510.8,2510.3,10.0]
[1751316667743,3.98310004,2510.7,2510.3,10.0]
[1751316667955,3.98310004,2510.7,2510.1,3.98382009]
[1751316667956,3.98327026,2510.5,2510.4,0.57036125]
[1751316668198,0.8061,2510.5,2510.0,0.01]
[1751316668349,0.8061,2510.7,2510.3,3.98348923]
[1751316668553,0.8061,2510.7,2510.4,0.1984]
[1751316669548,4.78908791,2510.7,2510.4,0.1984]
[1751316669784,5.39710181,2510.7,2510.0,3.99397733]
[1751316669953,3.9831116,2510.6,2510.2,0.1984]
[1751316670262,3.98347121,2510.4,2510.0,0.01]
[1751316670461,3.98347121,2510.4,2510.1,0.1984]
[1751316671185,3.98335495,2510.5,2510.1,0.1984]
[1751316671788,3.98350807,2510.4,2510.1,0.1984]
[1751316672351,4.63351817,2510.5,2510.1,0.1984]
[1751316672786,0.65015538,2510.5,2510.1,0.1984]
[1751316673084,0.1984,2510.6,2510.1,4.18229072]
[1751316673282,0.1984,2510.6,2510.2,3.98362946]
[1751316673591,0.8061,2510.7,2510.4,0.1984]
[1751316678492,0.8061,2510.7,2510.4,4.18181484]
[1751316678698,0.8061,2510.7,2510.4,4.1817535]
[1751316679494,0.8061,2510.7,2510.4,0.1984]
[1751316679886,0.2184,2510.9,2510.4,4.18181333]
[1751316680085,0.02,2510.9,2510.3,0.55]
[1751316680288,0.02,2510.9,2510.6,4.18138457]
[1751316680612,0.02,2510.9,2510.6,0.1984]
[1751316682503,4.5016505,2510.9,2510.6,0.1984]
[1751316685004,0.51892188,2510.9,2510.6,0.1984]
[1751316688813,4.50156117,2510.9,2510.6,0.1984]
[1751316689328,0.51892188,2510.9,2510.6,0.1984]
[1751316689992,4.50162264,2510.9,2510.6,0.1984]
[1751316690912,4.9101182,2510.8,2510.6,0.1984]
[1751316691088,0.7922,2510.7,2510.6,0.1984]
[1751316692811,4.00269771,2510.9,2510.6,0.1984]
[1751316693020,4.80739771,2510.9,2510.6,0.1984]
[1751316694384,0.8247,2510.9,2510.6,0.1984]
[1751316694585,0.02,2510.9,2510.6,4.18150636]
[1751316695304,0.02,2510.9,2510.6,0.1984]
[1751316695504,4.00264695,2510.9,2510.6,0.1984]
[1751316695910,0.02,2510.9,2510.6,0.1984]
[1751316697085,0.02,2510.9,2510.6,4.18149118]
[1751316697409,0.02,2510.9,2510.6,0.1984]
[1751316698817,0.02,2510.9,2510.6,4.18150614]
[1751316699010,0.02,2510.9,2510.6,0.1984]
[1751316699185,4.00267986,2510.9,2510.6,0.1984]
[1751316699618,3.98279649,2510.8,2510.6,0.1984]
[1751316700206,4.00271143,2510.9,2510.6,0.1984]
[1751316700922,4.00277174,2510.9,2510.6,0.1984]
[1751316702530,0.02,2510.9,2510.6,0.1984]
[1751316704020,4.00264804,2510.9,2510.6,0.1984]
[1751316704609,0.02,2510.9,2510.6,0.1984]
[1751316709426,4.90306554,2510.9,2510.6,0.1984]
[1751316710435,0.92034871,2510.9,2510.6,0.1984]
[1751316713427,0.92034871,2510.9,2510.6,4.18139714]
[1751316713629,0.02,2510.9,2510.8,3.98279432]
[1751316713837,0.02,2510.9,2510.8,4.18119432]
[1751316714726,0.02,2510.9,2510.8,0.1984]
[1751316719574,0.02,2510.9,2510.8,4.18119432]
[1751316720052,0.02,2510.9,2510.8,0.1984]
[1751316724255,0.02,2510.9,2510.5,10.01]
[1751316724562,3.98280488,2510.8,2510.5,0.2084]
[1751316725951,0.02,2510.9,2510.5,4.19152852]
[1751316726949,0.02,2510.9,2510.6,3.98310394]
[1751316727147,0.02,2510.9,2510.7,3.98280506]
[1751316727350,0.02,2510.9,2510.8,4.55442962]
[1751316727655,0.02,2510.9,2510.8,0.5716353]
[1751316729331,0.02,2510.9,2510.8,0.1984]
[1751316730264,0.02,2510.9,2510.8,4.18119432]
[1751316730454,0.02,2510.9,2510.8,11.29400445]
[1751316730658,0.02,2510.9,2510.8,12.82669635]
[1751316731765,0.02,2510.9,2510.8,7.31121013]
[1751316731975,0.02,2510.9,2510.8,0.1984]
[1751316732668,4.0026357,2510.9,2510.5,10.69466639]
[1751316733361,4.0026357,2510.9,2510.6,0.37326659]
[1751316733541,0.91664235,2510.9,2510.7,0.37326659]
[1751316733745,0.02,2510.9,2510.8,0.37326659]
[1751316734270,0.02,2510.9,2510.8,0.74653106]
[1751316734470,0.02,2510.9,2510.8,4.92772538]
[1751316735048,0.02,2510.9,2510.8,0.74653106]
[1751316735252,4.8191357,2510.9,2510.8,0.74653106]
[1751316735450,5.72112832,2510.9,2510.8,0.74653106]
[1751316735668,1.73849262,2510.9,2510.8,0.74653106]
[1751316735837,0.8365,2510.9,2510.8,0.74653106]
[1751316736243,0.02,2510.9,2510.8,4.72932538]
[1751316736477,0.02,2510.9,2510.8,4.92772538]
[1751316737343,0.02,2510.9,2510.8,0.57166659]
[1751316738440,0.02,2510.9,2510.8,0.37326659]
[1751316738441,4.8191357,2510.9,2510.8,0.37326659]
[1751316738643,5.30304927,2510.9,2510.8,0.37326659]
[1751316739441,5.30304927,2510.9,2510.6,0.1984]
[1751316739681,0.8365,2510.9,2510.6,0.1984]
[1751316739978,0.8365,2510.9,2510.6,4.18150565]
[1751316741179,0.8365,2510.9,2510.6,0.1984]
[1751316741756,0.8365,2510.9,2510.6,4.181468]
[1751316742972,0.8365,2510.9,2510.6,0.1984]
[1751316743689,0.8365,2510.9,2510.6,4.18150867]
[1751316744295,0.8365,2510.9,2510.6,0.1984]
[1751316744682,4.81923663,2510.9,2510.5,0.01]
[1751316745004,3.98296234,2510.7,2510.5,0.2084]
[1751316745165,3.98286265,2510.8,2510.5,0.2084]
[1751316746395,0.8365,2510.9,2510.6,3.98307255]
[1751316746738,0.02,2510.9,2510.8,3.98279432]
[1751316748193,0.02,2510.9,2510.7,4.18126059]
[1751316748400,0.02,2510.9,2510.8,3.98279432]
[1751316749379,0.02,2510.9,2510.7,4.18127355]
[1751316749810,0.02,2510.9,2510.8,3.98279432]
[1751316749968,0.02,2510.9,2510.8,5.66235945]
[1751316750163,0.02,2510.9,2510.8,1.67956513]
[1751316750503,0.02,2510.9,2510.7,0.1984]
[1751316754109,0.8024,2510.8,2510.7,0.1984]
[1751316754802,0.8024,2510.8,2510.6,0.1984]
[1751316755901,4.78527729,2510.8,2510.6,0.1984]
[1751316756101,3.98295296,2510.7,2510.6,0.1984]
[1751316756307,0.8024,2510.8,2510.6,0.1984]
[1751316757072,4.78521165,2510.8,2510.6,0.1984]
[1751316757504,3.98295296,2510.7,2510.6,0.1984]
[1751316757702,5.6858364,2510.8,2510.5,0.01]
[1751316757703,5.88429567,2510.8,2510.5,0.01]
[1751316757872,3.9831116,2510.6,2510.5,0.01]
[1751316758075,0.8024,2510.8,2510.6,3.98300239]
[1751316758277,0.02,2510.9,2510.6,3.98306823]
[1751316758478,3.98280248,2510.8,2510.5,0.2084]
[1751316759707,3.9830195,2510.7,2510.5,0.2084]
[1751316759882,0.806,2510.6,2510.5,0.2084]
[1751316760077,0.806,2510.8,2510.5,0.2084]
[1751316760798,0.02,2510.9,2510.5,4.19166665]
[1751316761506,0.02,2510.9,2510.5,0.2584]
[1751316761709,0.02,2510.9,2510.8,0.1984]
[1751316764693,0.02,2510.9,2510.8,4.18119432]
[1751316764885,0.02,2510.9,2510.8,0.1984]
[1751316767207,0.02,2510.9,2510.8,4.18119432]
[1751316767781,0.02,2510.9,2510.8,0.1984]
[1751316769623,0.02,2510.9,2510.5,0.01]
[1751316769624,3.98279995,2510.8,2510.5,0.01]
[1751316769820,4.00271505,2510.9,2510.6,0.1984]
[1751316772333,0.02,2510.9,2510.6,4.18151106]
[1751316772622,0.02,2510.9,2510.6,0.1984]
[1751316772816,0.02,2510.9,2510.7,7.11281013]
[1751316772997,4.0026357,2510.9,2510.8,0.1984]
[1751316773327,3.98286396,2510.8,2510.5,0.01]
[1751316773489,3.98286396,2510.8,2510.5,0.2084]
[1751316775117,4.76200712,2510.9,2510.5,0.2084]
[1751316775622,3.98281944,2510.8,2510.5,0.2084]
[1751316776838,3.98295731,2510.7,2510.5,0.2084]
[1751316777922,3.98288526,2510.8,2510.5,0.2084]
[1751316778116,4.76201775,2510.9,2510.5,0.2084]
[1751316778904,0.7793,2510.9,2510.5,4.19161476]
[1751316779116,0.02,2510.9,2510.6,3.98309981]
[1751316779313,0.02,2510.9,2510.6,3.98304145]
[1751316779513,0.02,2510.9,2510.5,7.22304283]
[1751316779514,4.00271261,2510.9,2510.7,0.1984]
[1751316781529,0.02,2510.9,2510.7,0.1984]
[1751316790298,0.02,2510.9,2510.8,3.98279432]
[1751316790638,0.02,2510.9,2510.7,4.23128268]
[1751316790994,0.02,2510.9,2510.7,4.18128268]
[1751316791195,0.02,2510.9,2510.7,0.1984]
[1751316794635,0.02,2510.9,2510.7,0.0984]
[1751316797127,0.02,2510.9,2510.7,4.08123674]
[1751316797333,0.02,2510.9,2510.7,0.81342752]
[1751316797527,0.02,2510.9,2510.8,0.1984]
[1751316798513,0.02,2510.9,2510.6,0.01]
[1751316798514,4.7686357,2510.9,2510.6,0.01]
[1751316798714,4.76869238,2510.9,2510.6,0.01]
[1751316798934,3.98287959,2510.8,2510.6,0.01]
[1751316799848,3.98295296,2510.7,2510.6,0.01]
[1751316801750,5.64441966,2510.7,2510.6,0.01]
[1751316804057,0.02,2510.9,2510.6,0.01]
[1751316804346,0.02,2510.9,2510.6,4.1914972]
[1751316805114,0.02,2510.9,2510.6,0.2084]
[1751316808546,0.02,2510.9,2510.8,0.1984]
[1751316813353,0.02,2510.9,2510.8,4.18119432]
[1751316813541,0.02,2510.9,2510.8,1.72711096]
[1751316816861,0.02,2510.9,2510.8,0.1984]
[1751316818442,0.02,2510.9,2510.8,4.23119432]
[1751316821901,0.02,2510.9,2510.8,0.2484]
[1751316822708,0.02,2510.9,2510.8,4.23119432]
[1751316824709,0.02,2510.9,2510.8,0.2484]
[1751316827702,0.02,2510.9,2510.8,0.1984]
[1751316831575,4.0026357,2510.9,2510.8,0.1984]
[1751316831771,4.48095927,2510.9,2510.6,0.01]
[1751316831974,4.74348935,2510.8,2510.7,0.1984]
[1751316833000,3.98295296,2510.7,2510.6,0.01]
[1751316833202,4.78915296,2510.7,2510.6,0.01]
[1751316833402,3.9831116,2510.6,2510.5,0.01]
[1751316833585,5.98420699,2510.6,2510.5,0.01]
[1751316837375,3.9831116,2510.6,2510.5,0.01]
[1751316837575,3.9831116,2510.6,2510.5,0.2084]
[1751316838506,4.7559116,2510.6,2510.5,0.01]
[1751316841111,4.9543116,2510.6,2510.5,0.01]
[1751316850636,3.98327026,2510.5,2510.4,2e-08]
[1751316850791,5.67519672,2510.5,2510.4,2e-08]
[1751316851322,15.67519672,2510.5,2510.4,2e-08]
[1751316853569,3.98453998,2509.7,2509.6,0.01]
[1751316853847,21.23573998,2509.7,2509.6,0.01]
[1751316854043,4.94209875,2509.6,2509.5,1e-08]
[1751316854334,3.98485754,2509.5,2509.4,1.59791612]
[1751316854633,3.98574303,2509.0,2508.8,1.1992]
[1751316854832,3.98581051,2508.9,2508.8,1.1992]
[1751316856936,3.98581051,2508.9,2508.8,1.2092]
[1751316862547,4.85877673,2508.9,2508.8,1.01]
[1751316862732,5.63337673,2508.9,2508.8,1.01]
[1751316863757,5.63337673,2508.9,2508.8,0.33880206]
[1751316864159,5.83257673,2508.9,2508.8,0.33880206]
[1751316874072,3.98596938,2508.8,2508.7,0.33880206]
[1751316874254,12.51188916,2508.8,2508.7,0.33880206]
[1751316876674,30.37759929,2508.8,2508.7,0.33880206]
[1751316876875,3.98739981,2507.9,2507.8,1.99]
[1751316877184,3.98755881,2507.8,2507.7,0.2592]
[1751316878444,3.98755881,2507.8,2507.7,0.2092]
[1751316879240,3.98755881,2507.8,2507.7,0.01]
[1751316882083,4.73995881,2507.8,2507.7,0.01]
[1751316882585,3.98755881,2507.8,2507.7,0.01]
[1751316884359,5.55835467,2507.8,2507.7,0.01]
[1751316884761,3.98755881,2507.8,2507.7,0.01]
[1751316887655,4.73855881,2507.8,2507.7,0.01]
[1751316889192,10.48455881,2507.8,2507.7,0.01]
[1751316889378,10.68375881,2507.8,2507.7,0.01]
[1751316890493,10.68475881,2507.8,2507.7,0.01]
[1751316891616,3.98741814,2507.9,2507.7,0.01]
[1751316891797,10.68455915,2508.0,2507.7,0.01]
[1751316892003,3.98740824,2507.9,2507.7,0.01]
[1751316892188,3.98755881,2507.8,2507.7,0.01]
[1751316892398,5.45477551,2507.8,2507.7,0.01]
[1751316892710,12.94247551,2507.8,2507.7,0.01]
[1751316896500,22.94247551,2507.8,2507.7,0.01]
[1751316898043,11.47525881,2507.8,2507.7,0.01]
[1751316898796,10.68475881,2507.8,2507.7,0.01]
[1751316900006,6.6972,2507.8,2507.7,0.01]
[1751316900402,10.68475881,2507.8,2507.7,0.01]
[1751316900838,4.18675881,2507.8,2507.7,0.01]
[1751316901001,10.68475881,2507.8,2507.7,0.01]
[1751316902348,6.498,2507.8,2507.7,0.01]
[1751316904001,4.76839657,2507.9,2507.7,0.01]
[1751316904231,6.498,2507.8,2507.7,0.01]
[1751316905006,3.98749657,2507.9,2507.7,0.01]
[1751316905206,6.498,2507.8,2507.7,0.01]
[1751316905750,0.1992,2508.0,2507.7,0.01]
[1751316905948,10.48540165,2507.9,2507.7,0.06]
[1751316906240,3.98755881,2507.8,2507.7,0.01]
[1751316909102,6.498,2507.9,2507.7,0.01]
[1751316909302,3.98708682,2508.1,2507.7,0.01]
[1751316909498,3.98724082,2508.0,2507.9,0.05]